fUSD/lending_fUSD_20260131
["ID","MTS","AMOUNT","RATE_DAILY","PERIOD"]
[404104465,1769849446289,-1916.78077401,0.00017565,2]
[404104466,1769849446313,-4231.8390766,0.00017565,2]
[404104467,1769849446324,-16595.81664352,0.00017565,2]
[404104469,1769849875305,171.0,0.00014355,2]
[404104470,1769849876025,171.0,0.00015035,2]
[404104471,1769849897353,915.8,0.00015424,2]
[404104473,1769849984185,1852.42,0.00015384,2]
[404104476,1769850264942,5352.415326,0.0001547,2]
[404104477,1769850378603,851.16007099,0.00015468,2]
[404104478,1769850524679,166.66,0.00014999,2]
[404104479,1769850524878,166.66,0.00015315,2]
[404104480,1769850553303,-1024.0,0.00015547,2]
[404104481,1769850553322,-300.0,0.00015547,2]
[404104482,1769850553342,-300.0,0.00015547,2]
[404104483,1769850553361,-218.29161671,0.00015548,2]
[404104484,1769850553381,-3375.20172729,0.00015548,2]
[404104485,1769850563114,-861.3080913,0.00015548,2]
[404104507,1769850632196,-1200.0,0.00015547,2]
[404104509,1769850632205,-1002.16489748,0.00015547,2]
[404104510,1769850632215,-280.0,0.00015548,2]
[404104512,1769850632228,-54877.84472693,0.00015548,2]
[404104513,1769850632237,-26568.84286778,0.00015548,3]
[404104515,1769850632247,-139.65005642,0.00015631,2]
[404104522,1769850632359,-27.00994358,0.00015631,2]
[404104524,1769850632368,-500.0,0.00015698,2]
[404104525,1769850632377,-500.0,0.00015698,2]
[404104527,1769850632387,-500.0,0.00015698,2]
[404104529,1769850632395,-409.74068149,0.00015698,2]
[404104530,1769850632406,-56.86795041,0.00015698,2]
[404104532,1769850632417,-500.0,0.00015698,2]
[404104534,1769850632428,-43.13204959,0.00015698,2]
[404104536,1769850632447,-470.66013615,0.00015698,2]
[404104538,1769850632456,-202.25964161,0.00015698,2]
[404104539,1769850632466,-151.0,0.00015698,2]
[404104542,1769850632475,-147.27022224,0.00015698,2]
[404104544,1769850632486,-3.72977776,0.00015698,2]
[404104545,1769850632496,-151.0,0.00015698,2]
[404104546,1769850632506,-151.0,0.00015698,2]
[404104547,1769850632516,-151.0,0.00015698,2]
[404104549,1769850632525,-151.0,0.00015698,2]
[404104553,1769850632533,-151.0,0.00015698,2]
[404104557,1769850632543,-151.0,0.00015698,2]
[404104561,1769850632552,-151.0,0.00015698,2]
[404104566,1769850632561,-151.0,0.00015698,2]
[404104571,1769850632570,-151.0,0.00015698,2]
[404104575,1769850632579,-151.0,0.00015698,2]
[404104578,1769850632589,-151.0,0.00015698,2]
[404104580,1769850632598,-151.0,0.00015698,2]
[404104582,1769850632607,-151.0,0.00015698,2]
[404104584,1769850632616,-151.0,0.00015698,2]
[404104586,1769850632625,-151.0,0.00015698,2]
[404104587,1769850632634,-151.0,0.00015698,2]
[404104589,1769850632643,-151.0,0.00015698,2]
[404104591,1769850632653,-151.0,0.00015698,2]
[404104593,1769850632662,-151.0,0.00015698,2]
[404104595,1769850632671,-151.0,0.00015698,2]
[404104597,1769850632679,-1023.32,0.00015773,2]
[404104599,1769850632688,-151.0,0.0001579,2]
[404104601,1769850632698,-151.0,0.0001579,2]
[404104603,1769850632707,-2253.05,0.00015817,2]
[404104605,1769850632716,-1000.0,0.0001588,2]
[404104607,1769850632726,-500.0,0.000159,2]
[404104609,1769850632735,-179.46524416,0.000159,2]
[404104611,1769850632744,-500.0,0.00015909,2]
[404104613,1769850632753,-500.0,0.00015909,2]
[404104615,1769850632762,-524.65876115,0.00015909,2]
[404104617,1769850632771,-215.4,0.0001591,2]
[404104619,1769850632780,-154.3416002,0.00015912,2]
[404104621,1769850632790,-5295.64,0.00015915,2]
[404104623,1769850632799,-9999.99,0.00015915,2]
[404104625,1769850632808,-9999.99,0.00015915,2]
[404104627,1769850632817,-999.99,0.00015915,2]
[404104629,1769850632827,-150.99,0.00015915,2]
[404104631,1769850632837,-150.99,0.00015915,2]
[404104633,1769850632847,-9999.99,0.00015915,2]
[404104634,1769850632856,-2213.39073573,0.00015936,2]
[404104689,1769850638292,-1972.78274802,0.00015936,2]
[404104693,1769850638342,-322.7392854,0.00015936,2]
[404104694,1769850638354,-426.4607146,0.00015936,2]
[404104695,1769850638376,-5064.61651625,0.00015936,2]
[404104696,1769850638386,-166.66,0.00015947,2]
[404104697,1769850638395,-200.0,0.00015953,2]
[404104698,1769850638405,-286.32,0.00016,2]
[404104699,1769850638419,-22342.9477,0.00016011,2]
[404104700,1769850638428,-3435.04611376,0.00016011,2]
[404104701,1769850638437,-1094.44341444,0.00016088,2]
[404104702,1769850638447,-790.88,0.00016111,2]
[404104703,1769850638456,-701.0,0.0001615,2]
[404104704,1769850638465,-486.0,0.0001615,2]
[404104705,1769850638481,-857.23010825,0.00016174,2]
[404104706,1769850638490,-1529.0,0.00016182,2]
[404104707,1769850638500,-3435.04611372,0.00016221,2]
[404104708,1769850638509,-166.66,0.00016262,2]
[404104709,1769850638518,-500.0,0.00016373,2]
[404104710,1769850638527,-445.31271782,0.00016373,2]
[404104711,1769850638537,-500.0,0.00016373,2]
[404104712,1769850638546,-500.0,0.00016373,2]
[404104713,1769850638556,-156.23170952,0.00016373,2]
[404104714,1769850638565,-642.79089811,0.00016373,2]
[404104716,1769850638575,-500.0,0.00016373,2]
[404104718,1769850638584,-500.0,0.00016373,2]
[404104720,1769850638593,-319.40810166,0.00016373,2]
[404104723,1769850638603,-407.76648186,0.00016373,2]
[404104724,1769850638611,-500.0,0.00016373,2]
[404104726,1769850638620,-500.0,0.00016373,2]
[404104728,1769850638629,-790.88,0.00016385,2]
[404104730,1769850638639,-376.48350639,0.00016414,2]
[404104735,1769850638670,-128.35121749,0.00016414,2]
[404104737,1769850638679,-353.71821193,0.00016414,2]
[404104835,1769850640347,-146.28178807,0.00016414,2]
[404104836,1769850640358,-500.0,0.00016414,2]
[404104837,1769850640367,-7.44689303,0.00016414,2]
[404104838,1769850640379,-492.55310697,0.00016414,2]
[404104839,1769850640388,-433.48689103,0.00016431,2]
[404104840,1769850640410,-3001.55922269,0.00016431,2]
[404104841,1769850640420,-500.0,0.00016466,2]
[404104842,1769850640430,-147.22760181,0.00016578,2]
[404104843,1769850640621,-19.43239819,0.00016578,2]
[404104844,1769850640631,-425.9692663,0.00016641,2]
[404104845,1769850640642,-679.77855441,0.00016641,2]
[404104846,1769850640702,-406.95691,0.00016641,2]
[404104847,1769850640715,-447.83616578,0.00016641,2]
[404104848,1769850640726,-467.02201334,0.00016641,2]
[404104851,1769850640738,-1007.48320389,0.00016641,2]
[404104852,1769850640747,-326.19694415,0.00016659,2]
[404104853,1769850640758,-426.37897498,0.00016659,2]
[404104873,1769850644147,-151.0,0.0001594,2]
[404104874,1769850644156,-38.30408087,0.00016659,2]
[404104875,1769850644166,-378.0,0.00016667,2]
[404104876,1769850644175,-469.2,0.00016685,2]
[404104877,1769850644184,-500.0,0.00016752,2]
[404104878,1769850644193,-316.71615535,0.00016752,2]
[404104885,1769850647226,-183.28384465,0.00016752,2]
[404104886,1769850647236,-376.83781573,0.00016752,2]
[404104887,1769850647250,-123.16218427,0.00016752,2]
[404104888,1769850647260,-215.4,0.00016794,2]
[404104889,1769850647269,-158.76,0.00016799,2]
[404104890,1769850647279,-200.0,0.000168,6]
[404104891,1769850647288,-3300.2104734,0.0001685,2]
[404104892,1769850647301,-1180.95304529,0.0001685,2]
[404104893,1769850647314,-2235.06613262,0.0001685,2]
[404104894,1769850647323,-1787.50432406,0.0001685,2]
[404104895,1769850647434,-3212.49567594,0.0001685,2]
[404104896,1769850647444,-5000.0,0.0001685,2]
[404104897,1769850647453,-5000.0,0.0001685,2]
[404104898,1769850647462,-1105.40490507,0.0001685,2]
[404104899,1769850647473,-3310.14308199,0.0001685,2]
[404104900,1769850647484,-584.45201294,0.0001685,2]
[404104901,1769850647493,-9.3719568,0.00016851,2]
[404104902,1769850647506,-679.4779604,0.00016851,2]
[404104903,1769850647518,-266.80887864,0.00016851,2]
[404104904,1769850647540,-547.44,0.00016851,2]
[404104905,1769850672075,163.47,0.00013018,2]
[404104906,1769850754640,3155.0,0.000122,5]
[404104907,1769851018137,2034.41460301,0.00013364,2]
[404104908,1769851399312,-260.0,0.00013364,2]
[404104909,1769851399334,-253.25269397,0.00013364,2]
[404104910,1769851399354,-2993.07539699,0.00013364,2]
[404104921,1769851759673,-195.0,0.0001405,2]
[404104922,1769851759695,-488.14572893,0.00014135,2]
[404104923,1769851759715,-250.0,0.0001422,2]
[404104924,1769851759736,-6554.55116352,0.0001439,2]
[404104925,1769851759758,-1200.0,0.00014699,2]
[404104926,1769851759778,-151.0,0.00014997,2]
[404104927,1769851759798,-1714.30310755,0.00015,3]
[404104952,1769851831446,-883.1256008,0.0001499,2]
[404104954,1769851831457,-367.2243992,0.0001499,2]
[404104956,1769851831467,-1250.35,0.0001499,2]
[404104958,1769851831476,-300.0,0.00014999,2]
[404104960,1769851831485,-150.0,0.00014999,2]
[404104962,1769851831495,-1200.0,0.00014999,2]
[404104965,1769851831505,-18347.47478533,0.00015,3]
[404104968,1769851831527,-457.18207613,0.00015,3]
[404104972,1769851831559,-2002.26807103,0.00015,3]
[404104977,1769851831594,-428.83006423,0.00015,3]
[404104979,1769851831607,-1491.53744342,0.00015,3]
[404105017,1769851832362,-2748.22741199,0.00015,3]
[404105018,1769851832375,-1961.94354208,0.00015,3]
[404105026,1769851837424,-500.0,0.00014998,2]
[404105027,1769851837434,-272054.54747397,0.00015,3]
[404105028,1769851837446,-480.71237647,0.00015,3]
[404105029,1769851837458,-639.31888652,0.00015,3]
[404105030,1769851837577,-915.68180285,0.00015,3]
[404105031,1769851837589,-1051.74850456,0.00015,3]
[404105032,1769851837601,-2074.22523032,0.00015,3]
[404105033,1769851837614,-27159.13094609,0.00015,3]
[404105034,1769851837634,-11737.65924844,0.00015,3]
[404105116,1769851839440,-1825.86696782,0.00015,3]
[404105117,1769851839495,-871.29316464,0.00015,3]
[404105118,1769851839556,-5945.50145145,0.00015,3]
[404105119,1769851839727,-833.81730511,0.00015,3]
[404105120,1769851839739,-60588.539391,0.00015,3]
[404105121,1769851839749,-177.93078691,0.00015253,2]
[404105122,1769851839761,-3150.14212898,0.00015253,2]
[404105123,1769851839771,-1830.31,0.00015353,2]
[404105124,1769851839780,-278.0,0.00015353,2]
[404105125,1769851839789,-195.0,0.0001539,2]
[404105126,1769851839798,-195.0,0.0001539,2]
[404105127,1769851839808,-250.0,0.0001539,2]
[404105128,1769851839818,-195.0,0.0001539,2]
[404105129,1769851839827,-250.0,0.00015455,2]
[404105130,1769851839836,-195.0,0.00015455,2]
[404105131,1769851839846,-600.0,0.00015455,2]
[404105132,1769851839855,-3150.14212892,0.00015547,2]
[404105133,1769851839864,-364.99,0.00015624,2]
[404105134,1769851839874,-561.0,0.00015639,2]
[404105135,1769851839883,-187.8,0.00015678,2]
[404105136,1769851839893,-345.0,0.00015735,2]
[404105137,1769851839902,-500.0,0.00015753,2]
[404105138,1769851839912,-151.0,0.00015803,2]
[404105139,1769851839921,-151.0,0.00015803,2]
[404105141,1769851839931,-151.0,0.00015803,2]
[404105142,1769851839940,-151.0,0.00015803,2]
[404105144,1769851839950,-188.74513068,0.00015818,2]
[404105145,1769851839959,-3150.14212892,0.00015841,2]
[404105146,1769851839969,-1250.35,0.0001589,2]
[404105147,1769851839978,-1250.35,0.0001589,2]
[404105148,1769851839987,-1250.35,0.0001589,2]
[404105149,1769851839996,-229652.36119356,0.000159,2]
[404105150,1769851840008,-6663.97403062,0.000159,2]
[404105160,1769851844162,-80.93986485,0.000159,2]
[404105161,1769851844175,-177271.84791097,0.000159,2]
[404105162,1769851844184,-471.15,0.00015918,2]
[404105163,1769851844193,-9999.99,0.0001599,2]
[404105164,1769851844202,-299.99,0.0001599,2]
[404105165,1769851844211,-343.09,0.0001599,2]
[404105166,1769851844221,-600.01972348,0.00016,2]
[404105167,1769851844230,-22916.65,0.00016,2]
[404105168,1769851844239,-1469.95,0.00016,2]
[404105169,1769851844248,-9999.99,0.00016,2]
[404105170,1769851844257,-36585.70119536,0.00016,4]
[404105175,1769851845648,-1658.88,0.00016,4]
[404105177,1769852173037,-2000.0,0.00022,120]
[404105178,1769852287673,2480.856365,7.945e-05,2]
[404105179,1769852444293,-336.0,0.00022,120]
[404105180,1769852863136,332.74508269,0.00011873,2]
[404105181,1769852863844,587.0017674,0.00011873,2]
[404105182,1769852864952,878.11953776,0.00012873,2]
[404105183,1769852865292,1188.1188,0.00012873,2]
[404105185,1769852972104,-524.17591745,0.00013467,2]
[404105186,1769852972127,-261.0,0.00013467,2]
[404105187,1769852972147,-250.0,0.00013671,2]
[404105188,1769852972167,-250.0,0.00013957,2]
[404105189,1769852972187,-200.0,0.00014578,2]
[404105190,1769852972207,-267.7,0.00014583,2]
[404105191,1769852972228,-200.0,0.00014753,2]
[404105192,1769852972249,-267.66,0.00014799,2]
[404105193,1769852972271,-485.31662421,0.00014801,2]
[404105222,1769853032064,-569.1924479,0.00014591,2]
[404105225,1769853032076,-874.0,0.00014591,2]
[404105234,1769853032156,-4867.2075521,0.00014591,2]
[404105236,1769853032166,-250.0,0.00014591,2]
[404105238,1769853032175,-271.0,0.00014591,2]
[404105240,1769853032185,-174.1524479,0.00014696,2]
[404105242,1769853032194,-172.1193364,0.00014701,2]
[404105244,1769853032203,-25.86337579,0.00014801,2]
[404105246,1769853032214,-250.0,0.00014814,2]
[404105248,1769853032224,-1200.0,0.00014859,2]
[404105250,1769853032234,-465.44,0.0001486,2]
[404105252,1769853032243,-150.99,0.00014932,2]
[404105254,1769853032252,-299.99,0.00014932,2]
[404105256,1769853032261,-482.0,0.00014932,2]
[404105258,1769853032270,-285.43134816,0.00014999,2]
[404105260,1769853032282,-500.0,0.00014999,2]
[404105262,1769853032291,-708.01,0.00015125,2]
[404105264,1769853032300,-570.86,0.00015178,2]
[404105266,1769853032309,-5059.112736,0.00015246,2]
[404105268,1769853032319,-180.16,0.00015256,2]
[404105270,1769853032329,-180.16,0.00015256,2]
[404105272,1769853032338,-180.16,0.00015256,2]
[404105274,1769853032347,-559.46,0.00015278,2]
[404105276,1769853032360,-172.26,0.00015323,2]
[404105278,1769853032369,-168.35,0.00015362,2]
[404105280,1769853032378,-180.16,0.00015378,2]
[404105282,1769853032387,-559.46,0.00015378,2]
[404105284,1769853032397,-1966.78403992,0.00015379,2]
[404105286,1769853032406,-267.7,0.00015393,2]
[404105288,1769853032416,-1118.92,0.000154,2]
[404105290,1769853032425,-172.1193364,0.0001546,2]
[404105292,1769853032438,-300.0,0.00015505,2]
[404105294,1769853032447,-206.16390379,0.00015506,2]
[404105296,1769853032458,-156.49262125,0.00015506,2]
[404105298,1769853032467,-150.0,0.00015506,2]
[404105300,1769853032477,-500.0,0.00015506,2]
[404105302,1769853032487,-150.0,0.00015506,2]
[404105304,1769853032496,-150.0,0.00015506,2]
[404105306,1769853032506,-500.0,0.00015506,2]
[404105308,1769853032515,-500.0,0.00015506,2]
[404105310,1769853032526,-206.11247144,0.00015506,2]
[404105312,1769853032536,-154.95816503,0.00015506,2]
[404105314,1769853032545,-135993.0326,0.00015525,2]
[404105315,1769853032558,-500.0,0.0001556,2]
[404105317,1769853032567,-150.0,0.0001556,2]
[404105320,1769853032577,-150.0,0.00015561,2]
[404105321,1769853032587,-500.0,0.00015561,2]
[404105324,1769853032597,-150.0,0.00015561,2]
[404105326,1769853032606,-500.0,0.00015561,2]
[404105328,1769853032615,-528.45714762,0.00015561,2]
[404105329,1769853032626,-1118.01,0.00015578,2]
[404105331,1769853032635,-184.07,0.00015578,2]
[404105333,1769853032645,-500.0,0.000156,5]
[404105335,1769853032654,-151.0,0.00015604,2]
[404105337,1769853032664,-500.0,0.00015604,2]
[404105340,1769853032684,-151.0,0.00015607,2]
[404105341,1769853032694,-537.74266754,0.00015615,2]
[404105342,1769853032704,-150.0,0.00015615,2]
[404105343,1769853032714,-156.67615941,0.00015616,2]
[404105344,1769853032723,-500.0,0.00015616,2]
[404105345,1769853032732,-500.0,0.00015616,2]
[404105346,1769853032742,-151.0,0.00015616,2]
[404105347,1769853032752,-151.0,0.00015616,2]
[404105348,1769853032761,-151.0,0.00015616,2]
[404105349,1769853032771,-151.0,0.00015616,2]
[404105350,1769853032780,-151.0,0.00015616,2]
[404105351,1769853032789,-151.0,0.00015616,2]
[404105352,1769853032800,-151.0,0.00015616,2]
[404105353,1769853032809,-500.0,0.00015616,2]
[404105354,1769853032819,-151.0,0.00015616,2]
[404105355,1769853032831,-500.0,0.00015616,2]
[404105356,1769853032841,-371.49990503,0.00015616,2]
[404105357,1769853032851,-151.0,0.00015616,2]
[404105358,1769853032860,-248.87616539,0.00015616,2]
[404105359,1769853032870,-500.0,0.00015616,2]
[404105360,1769853032879,-196.83470451,0.00015616,2]
[404105361,1769853032888,-500.0,0.00015616,2]
[404105362,1769853032897,-500.0,0.00015616,2]
[404105363,1769853032907,-500.0,0.00015616,2]
[404105364,1769853032923,-597.26876211,0.00015616,2]
[404105365,1769853032936,-200.0,0.00015616,2]
[404105366,1769853032945,-151.0,0.00015616,2]
[404105367,1769853032954,-151.0,0.00015616,2]
[404105368,1769853032963,-151.0,0.00015616,2]
[404105369,1769853032972,-151.0,0.00015616,2]
[404105370,1769853032982,-151.0,0.00015616,2]
[404105371,1769853032991,-151.0,0.00015616,2]
[404105372,1769853033000,-151.0,0.00015616,2]
[404105373,1769853033010,-151.0,0.00015616,2]
[404105374,1769853033020,-151.0,0.00015616,2]
[404105375,1769853033030,-151.0,0.00015616,2]
[404105376,1769853033039,-151.0,0.00015616,2]
[404105377,1769853033049,-1035.71,0.00015616,2]
[404105378,1769853033059,-500.0,0.00015625,2]
[404105379,1769853033069,-150.0,0.00015625,2]
[404105380,1769853033079,-500.0,0.00015625,2]
[404105381,1769853033089,-151.0,0.0001565,2]
[404105382,1769853033098,-151.0,0.00015653,2]
[404105383,1769853033108,-151.0,0.00015662,2]
[404105384,1769853033117,-252.92,0.00015663,2]
[404105385,1769853033127,-411.0,0.00015667,2]
[404105386,1769853033137,-150.0,0.0001567,2]
[404105387,1769853033146,-500.0,0.0001567,2]
[404105388,1769853033156,-500.0,0.0001567,2]
[404105389,1769853033165,-500.0,0.0001568,2]
[404105390,1769853033174,-260.60351587,0.0001568,2]
[404105391,1769853033184,-500.0,0.0001568,2]
[404105392,1769853033193,-1138.56326771,0.00015699,2]
[404105393,1769853033203,-2305.84781066,0.00015699,2]
[404105394,1769853033212,-901.45320411,0.00015699,2]
[404105395,1769853033221,-1100.0,0.000157,5]
[404105396,1769853033235,-150.0,0.00015724,2]
[404105397,1769853033245,-201.95716575,0.00015725,2]
[404105398,1769853033255,-150.0,0.00015725,2]
[404105399,1769853033264,-152.45403668,0.00015725,2]
[404105400,1769853033274,-500.0,0.00015725,2]
[404105401,1769853033284,-600.0,0.00015725,2]
[404105402,1769853033294,-500.0,0.00015735,2]
[404105403,1769853033304,-500.0,0.00015735,2]
[404105404,1769853033314,-1226.60944355,0.00015735,2]
[404105405,1769853033323,-1489.12501748,0.00015735,2]
[404105406,1769853033333,-1092.8753755,0.00015742,2]
[404105407,1769853033343,-2380.5029874,0.00015742,2]
[404105408,1769853033353,-2228.7278451,0.00015763,2]
[404105409,1769853033367,-1520.7968715,0.00015763,2]
[404105410,1769853033377,-34878.090811,0.00015768,2]
[404105411,1769853033387,-411.0,0.00015776,2]
[404105412,1769853033399,-200.0,0.00015779,2]
[404105413,1769853033409,-150.0,0.0001578,2]
[404105414,1769853033419,-500.0,0.0001578,2]
[404105415,1769853033429,-316.84851941,0.00015789,2]
[404105416,1769853033439,-500.0,0.00015789,2]
[404105417,1769853033449,-500.0,0.00015789,2]
[404105418,1769853033459,-666.0,0.00015798,2]
[404105419,1769853033469,-410.19377537,0.00015798,2]
[404105420,1769853033479,-500.0,0.00015798,2]
[404105421,1769853033490,-354.16006831,0.00015798,2]
[404105422,1769853033500,-264.53704545,0.00015798,2]
[404105423,1769853033510,-500.0,0.00015798,2]
[404105424,1769853033519,-500.0,0.00015798,2]
[404105425,1769853033529,-526.77967755,0.00015798,2]
[404105426,1769853033539,-111210.37752363,0.00015799,2]
[404105427,1769853033555,-23790.4938751,0.00015799,2]
[404105428,1769853033701,-662.96,0.00015799,2]
[404105429,1769853037612,-426.61846658,0.00015524,2]
[404105430,1769853037624,-73.38153342,0.00015524,2]
[404105431,1769853037633,-500.0,0.00015524,2]
[404105432,1769853037642,-500.0,0.00015524,2]
[404105433,1769853037651,-500.0,0.00015524,2]
[404105434,1769853037661,-500.0,0.00015524,2]
[404105435,1769853037670,-500.0,0.00015524,2]
[404105436,1769853037679,-500.0,0.00015524,2]
[404105437,1769853037689,-500.0,0.00015524,2]
[404105438,1769853037698,-500.0,0.00015524,2]
[404105439,1769853037707,-500.0,0.00015524,2]
[404105440,1769853037716,-500.0,0.00015524,2]
[404105441,1769853037725,-500.0,0.00015524,2]
[404105442,1769853037734,-500.0,0.00015524,2]
[404105443,1769853037744,-500.0,0.00015524,2]
[404105444,1769853037754,-500.0,0.00015524,2]
[404105445,1769853037763,-500.0,0.00015524,2]
[404105446,1769853037772,-500.0,0.00015524,2]
[404105447,1769853037781,-272.30950268,0.00015524,2]
[404105448,1769853037790,-500.0,0.00015524,2]
[404105449,1769853037800,-500.0,0.00015524,2]
[404105450,1769853037810,-119.32285673,0.00015524,2]
[404105451,1769853037852,-380.67714327,0.00015524,2]
[404105452,1769853037862,-500.0,0.00015524,2]
[404105454,1769853037871,-500.0,0.00015524,2]
[404105456,1769853037880,-500.0,0.00015524,2]
[404105458,1769853037890,-500.0,0.00015524,2]
[404105459,1769853037899,-500.0,0.00015524,2]
[404105461,1769853037907,-500.0,0.00015524,2]
[404105462,1769853037918,-500.0,0.00015524,2]
[404105464,1769853037928,-500.0,0.00015524,2]
[404105466,1769853037938,-500.0,0.00015524,2]
[404105467,1769853037948,-500.0,0.00015524,2]
[404105468,1769853037958,-500.0,0.00015524,2]
[404105470,1769853037967,-500.0,0.00015524,2]
[404105472,1769853037976,-500.0,0.00015524,2]
[404105473,1769853037985,-3230.44489883,0.00015799,2]
[404105474,1769853038005,-3034.96511933,0.00015799,2]
[404105475,1769853038024,-713.27716413,0.00015799,2]
[404105476,1769853039729,-6283.25844715,0.00015799,2]
[404105477,1769853039755,-84030.10967218,0.00015799,2]
[404105486,1769853045725,-1183.71644684,0.00015735,2]
[404105487,1769853045735,-226469.30651168,0.00015799,2]
[404105490,1769853046234,-1597.39612997,0.00015799,2]
[404105491,1769853046295,-2941.2820839,0.00015799,2]
[404105596,1769853508331,1100.0,0.00012888,2]
[404105612,1769853804756,186.29,0.00011386,2]
[404105619,1769853989407,3246.86844715,0.00011261,2]
[404105620,1769853989427,4733.30155285,0.00011261,2]
[404105621,1769854147089,-1969.92201,0.00013794,2]
[404105628,1769854231725,-8030.07799,0.00013724,2]
[404105629,1769854231735,-300.0,0.00013863,2]
[404105630,1769854231745,-250.0,0.00013864,2]
[404105631,1769854231755,-600.0,0.00013899,2]
[404105632,1769854231764,-166.66,0.00013934,2]
[404105633,1769854231774,-233.07568092,0.00013936,2]
[404105634,1769854231783,-500.0,0.00013937,2]
[404105635,1769854231793,-500.0,0.00013946,2]
[404105636,1769854231804,-1000.0,0.00014001,2]
[404105637,1769854231814,-1394.3,0.00014034,2]
[404105638,1769854231823,-166.66,0.00014228,2]
[404105639,1769854231833,-186.29,0.00014233,2]
[404105640,1769854231842,-770.22,0.00014248,2]
[404105641,1769854231852,-499.0,0.0001434,2]
[404105642,1769854231861,-1200.0,0.00014367,2]
[404105643,1769854231870,-722.0,0.00014368,2]
[404105644,1769854231881,-300.0,0.00014391,2]
[404105646,1769854231892,-300.0,0.00014391,2]
[404105648,1769854231901,-150.0,0.00014392,2]
[404105650,1769854231910,-150.0,0.00014393,2]
[404105651,1769854231919,-9999.99,0.00014393,2]
[404105652,1769854231930,-2376.32,0.00014393,2]
[404105653,1769854231939,-688.98,0.00014393,2]
[404105654,1769854231948,-150.99,0.00014393,2]
[404105655,1769854231958,-1491.0,0.00014397,2]
[404105656,1769854231967,-836.0,0.00014411,2]
[404105657,1769854231975,-824.0,0.0001444,2]
[404105658,1769854231984,-1067.0,0.00014468,2]
[404105659,1769854231993,-269.0,0.00014497,2]
[404105661,1769854232002,-1675.88,0.00014506,2]
[404105663,1769854232011,-166.66,0.00014521,2]
[404105665,1769854232019,-446.0,0.00014523,2]
[404105667,1769854232028,-1222.0,0.00014526,2]
[404105669,1769854232038,-683.65,0.00014542,2]
[404105672,1769854232047,-1647.0,0.00014552,2]
[404105675,1769854232055,-1884.0,0.00014581,2]
[404105678,1769854232064,-741.0,0.0001461,2]
[404105680,1769854232073,-290.75117701,0.00014624,2]
[404105682,1769854232082,-200.0,0.00014674,2]
[404105684,1769854232091,-500.0,0.00014674,2]
[404105686,1769854232100,-500.0,0.00014674,2]
[404105688,1769854232109,-500.0,0.00014674,2]
[404105690,1769854232117,-500.0,0.00014674,2]
[404105691,1769854232126,-500.0,0.00014674,2]
[404105694,1769854232135,-307.77070126,0.00014674,2]
[404105695,1769854232145,-500.0,0.00014674,2]
[404105697,1769854232154,-500.0,0.00014674,2]
[404105699,1769854232164,-500.0,0.00014674,2]
[404105701,1769854232172,-500.0,0.00014674,2]
[404105703,1769854232181,-151.0,0.00014674,2]
[404105705,1769854232190,-318.30506421,0.00014674,2]
[404105707,1769854232199,-151.0,0.00014674,2]
[404105709,1769854232208,-151.0,0.00014674,2]
[404105711,1769854232217,-151.0,0.00014674,2]
[404105713,1769854232226,-151.0,0.00014674,2]
[404105716,1769854232236,-151.0,0.00014674,2]
[404105717,1769854232244,-151.0,0.00014674,2]
[404105719,1769854232253,-151.0,0.00014674,2]